[Event "7. Arber-Senioren-Cup 2019"]
[Site "Bodenmais"]
[Date "2019.07.28"]
[Round "2.10"]
[White "Hamlack, Heinz"]
[Black "Ketzscher, Roland"]
[Result "1-0"]
[ECO "A46"]
[WhiteElo "1986"]
[BlackElo "1917"]
[Annotator "NA RC"]
[PlyCount "71"]
[EventDate "2019.07.27"]
[EventType "swiss"]
[EventCountry "GER"]
[SourceTitle "playchess.com"]
[Source "ChessBase"]
[SourceQuality "1"]
[TimeControl "5400+30"]

1. Nf3 {[%emt 0:00:00]} Nf6 {[%emt 0:00:00]} 2. d4 {[%emt 0:00:00]} e6 {[%emt 0:00:00]} 3. e3 {[%emt 0:00:00]} d5 {[%emt 0:00:00]} 4. Be2 {[%emt 0:00:00]} Nbd7 {[%emt 0:00:00]} 5. O-O {[%emt 0:00:00]} Bd6 {[%emt 0:00:00]} 6. b3 {[%emt 0:00:00]} O-O {[%emt 0:00:00]} 7. c4 {[%emt 0:00:00]} c6 {[%emt 0:00:00]} 8. Bb2 {[%emt 0:00:00]} Re8 {[%emt 0:00:00]} 9. Ne5 {[%emt 0:00:00]} Qc7 {[%emt 0:00:00]} 10. f4 {[%emt 0:00:00]} Ne4 {[%emt 0:00:00]} 11. Nd2 {[%emt 0:00:00]} f5 {[%emt 0:00:00]} 12. Nxe4 {[%emt 0:00:00]} fxe4 {[%emt 0:00:00]} 13. Qe1 {[%emt 0:00:00]} Nxe5 {[%emt 0:00:00]} 14. fxe5 {[%emt 0:00:00]} Be7 {[%emt 0:00:00]} 15. Bh5 {[%emt 0:04:54]} Rf8 {[%emt 0:00:00]} 16. Rxf8+ {[%emt 0:01:13]} Bxf8 {[%emt 0:00:00]} 17. Qf2 {[%emt 0:00:08]} g6 {[%emt 0:01:45]} 18. Rf1 {[%emt 0:04:03]} Qg7 {[%emt 0:00:48]} 19. Bg4 {[%emt 0:00:39]} Be7 {[%emt 0:01:36]} 20. cxd5 {[%emt 0:01:01]} cxd5 {[%emt 0:05:59]} 21. Rc1 {[%emt 0:00:23]} Bd7 {[%emt 0:09:14]} 22. Rc7 {[%emt 0:01:34]} Rf8 {[%emt 0:00:54]} 23. Qe2 {[%emt 0:00:50]} h5 {[%emt 0:02:29]} 24. Bh3 {[%emt 0:04:26]} Bc6 {[%emt 0:04:24]} 25. Bxe6+ {[%emt 0:00:15]} Kh8 {[%emt 0:00:12]} 26. Ba3 {[%emt 0:00:49]} Re8 {[%emt 0:00:38]} 27. Bxe7 {[%emt 0:02:27]} Rxe7 {[%emt 0:00:09]} 28. Rc8+ {[%emt 0:00:03]} Kh7 {[%emt 0:01:43]} 29. Bg8+ {[%emt 0:10:33]} Kh6 {[%emt 0:00:32]} 30. Qf2 {[%emt 0:03:41]} Rc7 {[%emt 0:16:48]} 31. Rf8 {[%emt 0:05:09]} Be8 {[%emt 0:01:15]} 32. h4 {[%emt 0:00:28]} Qe7 {[%emt 0:03:19]} 33. Bxd5 {[%emt 0:01:47]} Kg7 {[%emt 0:05:54]} 34. Qf6+ {[%emt 0:03:03]} Qxf6 {[%emt 0:00:52]} 35. Rxf6 {[%emt 0:00:03]} Rc1+ {[%emt 0:02:30]} 36. Kf2 {[%emt 0:00:51]} 1-0

[Event "7. Arber-Senioren-Cup 2019"]
[Site "Bodenmais"]
[Date "2019.07.28"]
[Round "2.11"]
[White "Supplieth, Peter"]
[Black "Godoj, Veit"]
[Result "1/2-1/2"]
[ECO "B01"]
[WhiteElo "1880"]
[BlackElo "1995"]
[Annotator "NA RC"]
[PlyCount "26"]
[EventDate "2019.07.27"]
[EventType "swiss"]
[EventCountry "GER"]
[SourceTitle "playchess.com"]
[Source "ChessBase"]
[SourceQuality "1"]
[TimeControl "5400+30"]

1. e4 {[%emt 0:00:00]} d5 {[%emt 0:00:00]} 2. exd5 {[%emt 0:00:00]} Qxd5 {[%emt 0:00:00]} 3. Nc3 {[%emt 0:00:00]} Qd6 {[%emt 0:00:00]} 4. d4 {[%emt 0:00:00]} Nf6 {[%emt 0:00:00]} 5. Nf3 {[%emt 0:00:00]} a6 {[%emt 0:00:00]} 6. h3 {[%emt 0:00:00]} b5 {[%emt 0:00:00]} 7. Be3 {[%emt 0:00:00]} Bb7 {[%emt 0:00:00]} 8. Be2 {[%emt 0:00:00]} e6 {[%emt 0:00:00]} 9. Qd2 {[%emt 0:00:00]} Nbd7 {[%emt 0:00:00]} 10. a3 {[%emt 0:00:00]} Be7 {[%emt 0:00:00]} 11. Rg1 {[%emt 0:00:00]} c5 {[%emt 0:00:00]} 12. dxc5 {[%emt 0:00:00]} Qxd2+ {[%emt 0:00:00]} 13. Nxd2 {[%emt 0:00:00]} Bxc5 {[%emt 0:00:00]} 1/2-1/2

[Event "7. Arber-Senioren-Cup 2019"]
[Site "Bodenmais"]
[Date "2019.07.28"]
[Round "2.12"]
[White "Kurka, Dieter"]
[Black "Riedl, Maximilian"]
[Result "1/2-1/2"]
[ECO "D00"]
[WhiteElo "2006"]
[BlackElo "1905"]
[Annotator "NA RC"]
[PlyCount "88"]
[EventDate "2019.07.27"]
[EventType "swiss"]
[EventCountry "GER"]
[SourceTitle "playchess.com"]
[Source "ChessBase"]
[SourceQuality "1"]
[TimeControl "5400+30"]

1. d4 {[%emt 0:00:00]} d5 {[%emt 0:00:00]} 2. Bf4 {[%emt 0:00:00]} Nf6 {[%emt 0:00:00]} 3. e3 {[%emt 0:00:00]} Bf5 {[%emt 0:00:00]} 4. c3 {[%emt 0:00:00]} c6 {[%emt 0:00:00]} 5. Nd2 {[%emt 0:00:00]} Nbd7 {[%emt 0:00:00]} 6. h3 {[%emt 0:00:00]} Qb6 {[%emt 0:00:00]} 7. b4 {[%emt 0:00:00]} Ne4 {[%emt 0:00:00]} 8. Nxe4 {[%emt 0:00:00]} Bxe4 {[%emt 0:00:00]} 9. Nf3 {[%emt 0:00:00]} f6 {[%emt 0:00:00]} 10. Nd2 {[%emt 0:00:00]} Bg6 {[%emt 0:00:00]} 11. Be2 {[%emt 0:00:00]} e5 {[%emt 0:00:00]} 12. Bg3 {[%emt 0:00:00]} Bd6 {[%emt 0:00:00]} 13. O-O Qc7 {[%emt 0:00:00]} 14. Qb3 {[%emt 0:00:00]} Bf7 {[%emt 0:00:00]} 15. Rfe1 {[%emt 0:07:09]} O-O {[%emt 0:00:00]} 16. Rac1 {[%emt 0:03:28]} b5 {[%emt 0:00:00]} 17. Qc2 {[%emt 0:10:00]} e4 {[%emt 0:00:00]} 18. Bxd6 {[%emt 0:00:49]} Qxd6 {[%emt 0:00:00]} 19. f4 {[%emt 0:03:17]} g5 {[%emt 0:00:00]} 20. g3 {[%emt 0:02:15]} h5 {[%emt 0:00:00]} 21. Rf1 {[%emt 0:10:48]} Kg7 {[%emt 0:02:41]} 22. Kg2 {[%emt 0:02:57]} Rh8 {[%emt 0:00:36]} 23. h4 {[%emt 0:03:25]} gxh4 {[%emt 0:02:57]} 24. gxh4 {[%emt 0:00:01]} f5 {[%emt 0:00:21]} 25. Nb3 {[%emt 0:01:04]} Nf6 {[%emt 0:00:52]} 26. Rh1 {[%emt 0:00:55]} Ng4 {[%emt 0:00:24]} 27. Bxg4 {[%emt 0:00:07]} hxg4 {[%emt 0:00:20]} 28. Kg3 {[%emt 0:00:27]} Rh6 {[%emt 0:01:37]} 29. Rh2 {[%emt 0:02:04]} Rah8 {[%emt 0:04:38]} 30. Nc5 {[%emt 0:01:33]} Qd8 {[%emt 0:03:20]} 31. Rch1 {[%emt 0:00:34]} Qb6 {[%emt 0:07:36]} 32. Nb3 {[%emt 0:04:55]} Be6 {[%emt 0:02:20]} 33. a3 {[%emt 0:00:34]} Bc8 {[%emt 0:00:24]} 34. Qa2 {[%emt 0:02:21]} a6 {[%emt 0:04:04]} 35. a4 {[%emt 0:00:37]} Qd8 {[%emt 0:04:13]} 36. axb5 {[%emt 0:00:45]} cxb5 {[%emt 0:00:51]} 37. Nc5 {[%emt 0:01:08]} Kf8 {[%emt 0:08:20]} 38. Qa3 {[%emt 0:08:02]} Ke8 {[%emt 0:00:19]} 39. Qa2 {[%emt 0:00:55]} R8h7 {[%emt 0:01:08]} 40. Qa5 {[%emt 0:01:43]} Qxa5 {[%emt 0:00:29]} 41. bxa5 {[%emt 0:00:01]} Kd8 {[%emt 0:00:49]} 42. Rb1 {[%emt 0:00:32]} Kc7 {[%emt 0:00:55]} 43. Rb4 {[%emt 0:00:26]} Kc6 {[%emt 0:00:36]} 44. Rb1 {[%emt 0:00:14]} Rh8 1/2-1/2

[Event "7. Arber-Senioren-Cup 2019"]
[Site "Bodenmais"]
[Date "2019.07.28"]
[Round "2.13"]
[White "Pisz, Bretislav"]
[Black "Puehn, Georg"]
[Result "1/2-1/2"]
[ECO "A18"]
[WhiteElo "1599"]
[BlackElo "1990"]
[Annotator "NA RC"]
[PlyCount "59"]
[EventDate "2019.07.27"]
[EventType "swiss"]
[EventCountry "GER"]
[SourceTitle "playchess.com"]
[Source "ChessBase"]
[SourceQuality "1"]
[TimeControl "5400+30"]

1. c4 {[%emt 0:00:00]} Nf6 {[%emt 0:00:00]} 2. Nc3 e6 3. e4 {[%emt 0:00:00]} d5 {[%emt 0:00:00]} 4. e5 {[%emt 0:00:00]} d4 {[%emt 0:00:00]} 5. exf6 {[%emt 0:00:00]} dxc3 {[%emt 0:00:00]} 6. bxc3 {[%emt 0:00:00]} Qxf6 {[%emt 0:00:00]} 7. Nf3 {[%emt 0:00:00]} c5 {[%emt 0:00:00]} 8. Rb1 {[%emt 0:00:00]} Bd6 {[%emt 0:00:00]} 9. d4 {[%emt 0:00:00]} h6 {[%emt 0:01:17]} 10. Be3 {[%emt 0:00:00]} O-O {[%emt 0:10:16]} 11. Rb3 {[%emt 0:00:00]} Nc6 {[%emt 0:02:24]} 12. dxc5 {[%emt 0:00:00]} Bc7 {[%emt 0:00:33]} 13. Qc2 {[%emt 0:01:48]} e5 {[%emt 0:05:00]} 14. Bd3 {[%emt 0:11:40]} Re8 {[%emt 0:03:04]} 15. Nd2 {[%emt 0:01:18]} Qe6 {[%emt 0:06:31]} 16. O-O {[%emt 0:05:00]} f5 {[%emt 0:01:04]} 17. f3 {[%emt 0:03:58]} Rb8 {[%emt 0:02:36]} 18. h3 {[%emt 0:01:48]} Qf7 {[%emt 0:03:19]} 19. g4 {[%emt 0:01:49]} Ne7 {[%emt 0:01:15]} 20. c6 {[%emt 0:02:00]} Nxc6 {[%emt 0:00:58]} 21. h4 {[%emt 0:09:47]} Qe7 {[%emt 0:02:43]} 22. Bxf5 {[%emt 0:04:53]} Qxh4 {[%emt 0:04:19]} 23. Bf2 {[%emt 0:04:33]} Qe7 {[%emt 0:00:14]} 24. Bg6 {[%emt 0:02:58]} Rf8 {[%emt 0:01:08]} 25. Kg2 {[%emt 0:09:21]} Be6 {[%emt 0:04:04]} 26. Rh1 {[%emt 0:01:27]} Qf6 {[%emt 0:04:44]} 27. Bh4 {[%emt 0:03:36]} Qf4 {[%emt 0:01:17]} 28. Bg3 {[%emt 0:00:17]} Qf6 {[%emt 0:02:09]} 29. Bh4 {[%emt 0:00:39]} Qf4 {[%emt 0:00:07]} 30. Bg3 {[%emt 0:00:20]} 1/2-1/2

[Event "7. Arber-Senioren-Cup 2019"]
[Site "Bodenmais"]
[Date "2019.07.28"]
[Round "2.14"]
[White "Nickl, Klaus"]
[Black "Latzel, Wolfgang"]
[Result "1/2-1/2"]
[ECO "A41"]
[WhiteElo "1988"]
[BlackElo "1881"]
[Annotator "NA RC"]
[PlyCount "42"]
[EventDate "2019.07.27"]
[EventType "swiss"]
[EventCountry "GER"]
[SourceTitle "playchess.com"]
[Source "ChessBase"]
[SourceQuality "1"]
[TimeControl "5400+30"]

1. d4 {[%emt 0:00:00]} d6 {[%emt 0:00:00]} 2. Nf3 {[%emt 0:00:00]} g6 {[%emt 0:00:00]} 3. Bf4 {[%emt 0:00:00]} Bg7 {[%emt 0:00:00]} 4. e3 {[%emt 0:00:00]} Nd7 {[%emt 0:00:00]} 5. c3 {[%emt 0:00:00]} e5 {[%emt 0:00:00]} 6. Bg3 {[%emt 0:00:00]} Qe7 {[%emt 0:00:00]} 7. Be2 {[%emt 0:00:00]} Nh6 {[%emt 0:00:00]} 8. Na3 {[%emt 0:00:00]} a6 {[%emt 0:00:00]} 9. Bh4 {[%emt 0:00:00]} f6 {[%emt 0:00:00]} 10. dxe5 {[%emt 0:00:00]} dxe5 {[%emt 0:00:00]} 11. e4 {[%emt 0:00:00]} Nf7 {[%emt 0:00:00]} 12. Qc2 {[%emt 0:00:00]} Bh6 {[%emt 0:00:00]} 13. Nc4 {[%emt 0:00:00]} Nb6 {[%emt 0:00:00]} 14. Nxb6 {[%emt 0:01:13]} cxb6 {[%emt 0:00:00]} 15. Bc4 {[%emt 0:02:33]} Be6 {[%emt 0:00:00]} 16. Qb3 {[%emt 0:02:12]} Bxc4 {[%emt 0:00:00]} 17. Qxc4 {[%emt 0:00:09]} Rd8 {[%emt 0:00:00]} 18. Rd1 {[%emt 0:02:22]} O-O {[%emt 0:00:00]} 19. O-O {[%emt 0:00:10]} Kh8 {[%emt 0:00:00]} 20. Qe2 {[%emt 0:04:29]} b5 {[%emt 0:00:00]} 21. Rxd8 {[%emt 0:06:11]} Rxd8 {[%emt 0:00:00]} 1/2-1/2

[Event "7. Arber-Senioren-Cup 2019"]
[Site "Bodenmais"]
[Date "2019.07.28"]
[Round "2.15"]
[White "Berger, Siegfried"]
[Black "Limberg, Siegfried"]
[Result "1-0"]
[ECO "B40"]
[WhiteElo "1548"]
[BlackElo "1983"]
[Annotator "NA RC"]
[PlyCount "100"]
[EventDate "2019.07.27"]
[EventType "swiss"]
[EventCountry "GER"]
[SourceTitle "playchess.com"]
[Source "ChessBase"]
[SourceQuality "1"]
[TimeControl "5400+30"]

1. e4 {[%emt 0:00:00]} c5 {[%emt 0:00:00]} 2. Nf3 {[%emt 0:00:00]} e6 {[%emt 0:00:00]} 3. Nc3 {[%emt 0:00:00]} a6 {[%emt 0:00:00]} 4. a3 {[%emt 0:00:00]} Nc6 {[%emt 0:00:00]} 5. d4 {[%emt 0:00:00]} cxd4 {[%emt 0:00:00]} 6. Nxd4 {[%emt 0:00:00]} d6 {[%emt 0:00:00]} 7. Nxc6 {[%emt 0:00:00]} bxc6 {[%emt 0:00:00]} 8. Bd3 {[%emt 0:00:00]} Nf6 {[%emt 0:00:00]} 9. O-O {[%emt 0:00:00]} Be7 {[%emt 0:00:00]} 10. Re1 {[%emt 0:00:00]} e5 {[%emt 0:00:00]} 11. h3 {[%emt 0:00:00]} O-O {[%emt 0:00:00]} 12. Be3 {[%emt 0:00:00]} d5 13. exd5 cxd5 {[%emt 0:00:00]} 14. Bg5 {[%emt 0:00:00]} e4 {[%emt 0:00:00]} 15. Be2 {[%emt 0:00:00]} Be6 {[%emt 0:00:00]} 16. Be3 {[%emt 0:00:00]} Qd7 {[%emt 0:03:02]} 17. f3 {[%emt 0:05:55]} Rfd8 {[%emt 0:05:45]} 18. Bd4 {[%emt 0:03:22]} Qc6 {[%emt 0:02:15]} 19. Qd2 {[%emt 0:04:32]} Bc5 {[%emt 0:03:43]} 20. Bd1 {[%emt 0:10:06]} Rab8 {[%emt 0:05:22]} 21. b4 {[%emt 0:01:52]} Bxd4+ {[%emt 0:04:58]} 22. Qxd4 {[%emt 0:00:18]} exf3 {[%emt 0:01:51]} 23. Bxf3 {[%emt 0:03:41]} Rdc8 {[%emt 0:08:05]} 24. Re3 {[%emt 0:01:15]} Qc4 {[%emt 0:16:43]} 25. Qxc4 {[%emt 0:03:02]} Rxc4 {[%emt 0:00:45]} 26. Na4 {[%emt 0:06:06]} a5 {[%emt 0:07:02]} 27. c3 {[%emt 0:02:00]} axb4 {[%emt 0:00:30]} 28. cxb4 {[%emt 0:00:49]} d4 {[%emt 0:03:04]} 29. Ree1 {[%emt 0:01:39]} d3 {[%emt 0:02:12]} 30. Rad1 {[%emt 0:05:09]} Bf5 {[%emt 0:05:02]} 31. g4 {[%emt 0:08:11]} Bg6 {[%emt 0:00:38]} 32. Nc5 {[%emt 0:04:29]} Rc3 {[%emt 0:00:57]} 33. g5 {[%emt 0:02:10]} Ne8 {[%emt 0:05:10]} 34. a4 {[%emt 0:08:09]} h6 {[%emt 0:01:58]} 35. gxh6 {[%emt 0:01:37]} gxh6 {[%emt 0:00:08]} 36. Be4 {[%emt 0:04:02]} f5 {[%emt 0:12:22]} 37. Bd5+ {[%emt 0:07:56]} Bf7 {[%emt 0:01:30]} 38. Bxf7+ {[%emt 0:00:19]} Kxf7 {[%emt 0:00:06]} 39. Nxd3 {[%emt 0:00:51]} Kf6 {[%emt 0:01:45]} 40. Nf4 {[%emt 0:02:55]} Nc7 {[%emt 0:03:08]} 41. Rb1 {[%emt 0:02:42]} Rc4 {[%emt 0:01:54]} 42. Nd3 {[%emt 0:00:49]} Nd5 {[%emt 0:01:14]} 43. b5 {[%emt 0:02:53]} Rxa4 {[%emt 0:00:36]} 44. Nc5 {[%emt 0:00:06]} Rg8+ {[%emt 0:00:59]} 45. Kh1 {[%emt 0:00:20]} Ra3 {[%emt 0:02:55]} 46. Re6+ {[%emt 0:00:42]} Kf7 {[%emt 0:02:14]} 47. Rxh6 {[%emt 0:01:08]} Rgg3 {[%emt 0:00:56]} 48. Kh2 {[%emt 0:01:14]} Nf4 49. b6 Rg2+ 50. Kh1 Raa2 1-0

[Event "7. Arber-Senioren-Cup 2019"]
[Site "Bodenmais"]
[Date "2019.07.28"]
[Round "2.16"]
[White "Pribyl, Josef"]
[Black "Kirschner, Torsten"]
[Result "1-0"]
[ECO "A49"]
[WhiteElo "2234"]
[BlackElo "1767"]
[Annotator "RC"]
[PlyCount "47"]
[EventDate "2019.07.27"]
[EventType "swiss"]
[EventCountry "GER"]
[SourceTitle "playchess.com"]
[Source "ChessBase"]
[SourceQuality "1"]
[TimeControl "5400+30"]

1. d4 {[%emt 0:00:00]} Nf6 {[%emt 0:00:00]} 2. Nf3 {[%emt 0:00:00]} g6 {[%emt 0:00:00]} 3. g3 {[%emt 0:00:00]} Bg7 {[%emt 0:00:00]} 4. Bg2 {[%emt 0:00:00]} O-O {[%emt 0:00:00]} 5. O-O {[%emt 0:00:00]} d6 {[%emt 0:00:00]} 6. Nc3 {[%emt 0:00:00]} c6 {[%emt 0:00:00]} 7. e4 {[%emt 0:00:00]} a5 {[%emt 0:00:00]} 8. a4 {[%emt 0:00:00]} Na6 {[%emt 0:00:00]} 9. h3 {[%emt 0:00:00]} Qc7 {[%emt 0:00:00]} 10. Be3 {[%emt 0:00:00]} Nb4 {[%emt 0:00:00]} 11. Qd2 {[%emt 0:00:00]} Re8 {[%emt 0:00:00]} 12. Rfd1 {[%emt 0:00:00]} e5 {[%emt 0:00:00]} 13. Rac1 {[%emt 0:00:00]} Be6 {[%emt 0:00:00]} 14. Bh6 {[%emt 0:00:00]} Bh8 {[%emt 0:00:00]} 15. Qg5 {[%emt 0:00:00]} Nh5 {[%emt 0:00:00]} 16. Rd2 {[%emt 0:00:00]} Qe7 {[%emt 0:00:00]} 17. Qxe7 {[%emt 0:00:00]} Rxe7 {[%emt 0:00:00]} 18. dxe5 {[%emt 0:00:00]} dxe5 {[%emt 0:00:00]} 19. Rcd1 {[%emt 0:00:00]} f6 {[%emt 0:00:00]} 20. Bf1 {[%emt 0:00:00]} Kf7 {[%emt 0:04:42]} 21. Be3 {[%emt 0:00:00]} Ke8 {[%emt 0:00:59]} 22. Bb6 {[%emt 0:00:00]} Rd7 {[%emt 0:04:57]} 23. Kg2 {[%emt 0:00:00]} Nxc2 {[%emt 0:01:28]} 24. Rxc2 {[%emt 0:00:00]} 1-0

[Event "7. Arber-Senioren-Cup 2019"]
[Site "Bodenmais"]
[Date "2019.07.28"]
[Round "2.17"]
[White "Korte, Markus"]
[Black "Wolff, Peter"]
[Result "1-0"]
[ECO "B18"]
[WhiteElo "2028"]
[BlackElo "1915"]
[Annotator "NA RC"]
[PlyCount "195"]
[EventDate "2019.07.27"]
[EventType "swiss"]
[EventCountry "GER"]
[SourceTitle "playchess.com"]
[Source "ChessBase"]
[SourceQuality "1"]
[TimeControl "5400+30"]

1. e4 {[%emt 0:00:00]} c6 {[%emt 0:00:00]} 2. d4 {[%emt 0:00:00]} d5 {[%emt 0:00:00]} 3. Nc3 {[%emt 0:00:00]} dxe4 {[%emt 0:00:00]} 4. Nxe4 {[%emt 0:00:00]} Bf5 {[%emt 0:00:00]} 5. Ng3 {[%emt 0:00:00]} Bg6 {[%emt 0:00:00]} 6. Nf3 {[%emt 0:00:00]} Nd7 {[%emt 0:00:00]} 7. Bc4 {[%emt 0:00:00]} e6 {[%emt 0:00:00]} 8. O-O {[%emt 0:00:00]} Ngf6 {[%emt 0:00:00]} 9. Re1 {[%emt 0:00:00]} Be7 {[%emt 0:00:00]} 10. Nh4 {[%emt 0:00:00]} O-O {[%emt 0:00:00]} 11. Nxg6 {[%emt 0:00:00]} hxg6 {[%emt 0:00:00]} 12. c3 {[%emt 0:00:00]} Nb6 {[%emt 0:00:00]} 13. Bf1 {[%emt 0:00:00]} c5 {[%emt 0:00:00]} 14. Be3 {[%emt 0:00:00]} Nbd5 {[%emt 0:00:00]} 15. Bg5 {[%emt 0:00:00]} cxd4 {[%emt 0:00:00]} 16. Qxd4 {[%emt 0:00:00]} Qb6 {[%emt 0:00:00]} 17. Qxb6 {[%emt 0:00:00]} Nxb6 {[%emt 0:00:00]} 18. a4 {[%emt 0:00:00]} a5 {[%emt 0:00:25]} 19. Be2 {[%emt 0:10:06]} Rfd8 {[%emt 0:07:56]} 20. Bf3 {[%emt 0:07:10]} Rd7 {[%emt 0:00:55]} 21. Re5 {[%emt 0:02:39]} Nfd5 {[%emt 0:09:07]} 22. Bxe7 {[%emt 0:03:23]} Rxe7 {[%emt 0:05:37]} 23. Rae1 {[%emt 0:05:19]} Rc7 {[%emt 0:02:42]} 24. R1e2 {[%emt 0:12:33]} Rd8 {[%emt 0:15:38]} 25. h3 {[%emt 0:17:32]} Nc4 {[%emt 0:12:36]} 26. R5e4 {[%emt 0:06:59]} Nf6 {[%emt 0:03:31]} 27. Rh4 {[%emt 0:07:27]} Nd2 {[%emt 0:04:11]} 28. Re5 {[%emt 0:03:47]} Nxf3+ {[%emt 0:02:12]} 29. gxf3 {[%emt 0:00:02]} Rd5 {[%emt 0:01:15]} 30. Rxd5 {[%emt 0:01:27]} Nxd5 {[%emt 0:00:42]} 31. Rd4 {[%emt 0:01:04]} Kf8 {[%emt 0:04:13]} 32. Ne4 {[%emt 0:07:44]} Ke7 {[%emt 0:03:46]} 33. Nd2 {[%emt 0:02:52]} Nb6 {[%emt 0:03:20]} 34. Rg4 {[%emt 0:04:37]} Kf6 {[%emt 0:11:02]} 35. Ne4+ {[%emt 0:03:02]} Ke7 {[%emt 0:00:21]} 36. Nd2 {[%emt 0:00:21]} Kf6 {[%emt 0:00:58]} 37. Kf1 {[%emt 0:01:26]} Nd5 {[%emt 0:04:47]} 38. Ke2 {[%emt 0:02:11]} Ke7 {[%emt 0:05:31]} 39. Nb3 {[%emt 0:02:06]} b6 {[%emt 0:01:30]} 40. Nd2 {[%emt 0:01:48]} f5 {[%emt 0:02:14]} 41. Rh4 {[%emt 0:00:56]} g5 {[%emt 0:00:59]} 42. Rh8 {[%emt 0:00:55]} Rc6 {[%emt 0:02:00]} 43. h4 {[%emt 0:01:04]} gxh4 {[%emt 0:00:33]} 44. Rxh4 {[%emt 0:00:10]} g5 {[%emt 0:00:20]} 45. Rh7+ {[%emt 0:00:13]} Kf6 {[%emt 0:00:11]} 46. Rh6+ {[%emt 0:01:26]} Kg7 {[%emt 0:00:14]} 47. Rh2 {[%emt 0:00:20]} e5 {[%emt 0:00:56]} 48. Kd1 {[%emt 0:00:27]} Nf4 {[%emt 0:00:26]} 49. Kc2 {[%emt 0:00:30]} Rc5 {[%emt 0:02:06]} 50. Rh1 {[%emt 0:00:35]} Ne2 {[%emt 0:00:45]} 51. Kb3 {[%emt 0:00:23]} Nf4 {[%emt 0:01:00]} 52. Nc4 {[%emt 0:00:47]} Nd5 {[%emt 0:01:06]} 53. Nd6 {[%emt 0:00:19]} Ne7 {[%emt 0:00:22]} 54. Rd1 {[%emt 0:00:33]} Kg6 {[%emt 0:00:41]} 55. Nc4 {[%emt 0:00:23]} Kf7 {[%emt 0:00:45]} 56. Rd7 {[%emt 0:00:17]} Ke8 {[%emt 0:00:30]} 57. Rb7 {[%emt 0:00:44]} e4 {[%emt 0:00:30]} 58. Nd6+ {[%emt 0:00:12]} Kf8 {[%emt 0:00:14]} 59. fxe4 {[%emt 0:00:30]} f4 {[%emt 0:00:42]} 60. Rxb6 {[%emt 0:00:58]} g4 {[%emt 0:00:08]} 61. Rb8+ {[%emt 0:01:06]} Kg7 {[%emt 0:00:27]} 62. Re8 {[%emt 0:00:39]} Ng6 {[%emt 0:00:53]} 63. Nf5+ {[%emt 0:00:39]} Kf6 {[%emt 0:00:31]} 64. Rd8 {[%emt 0:00:49]} Re5 {[%emt 0:00:38]} 65. Rd6+ {[%emt 0:00:51]} Kg5 {[%emt 0:00:12]} 66. Rd4 {[%emt 0:00:51]} Nh4 {[%emt 0:00:25]} 67. Nd6 {[%emt 0:00:47]} Kh5 {[%emt 0:00:29]} 68. Nc4 {[%emt 0:00:07]} Re6 {[%emt 0:00:28]} 69. Rd5+ {[%emt 0:00:10]} Kh6 {[%emt 0:00:24]} 70. e5 {[%emt 0:00:15]} Nf5 {[%emt 0:00:28]} 71. Nd6 {[%emt 0:00:24]} Kg6 {[%emt 0:00:30]} 72. c4 {[%emt 0:00:25]} g3 {[%emt 0:00:36]} 73. fxg3 {[%emt 0:00:04]} fxg3 {[%emt 0:00:04]} 74. Ne4 {[%emt 0:00:27]} g2 {[%emt 0:00:19]} 75. Rd1 {[%emt 0:00:14]} Rxe5 {[%emt 0:00:15]} 76. Rg1 {[%emt 0:01:02]} Ne3 {[%emt 0:00:30]} 77. Ng3 {[%emt 0:01:17]} Rc5 {[%emt 0:00:37]} 78. Ne2 {[%emt 0:00:10]} Kg5 {[%emt 0:00:49]} 79. Kc3 {[%emt 0:00:17]} Rf5 {[%emt 0:00:53]} 80. Kd3 {[%emt 0:00:55]} Rf3 {[%emt 0:00:42]} 81. Ke4 {[%emt 0:00:16]} Kg4 {[%emt 0:00:12]} 82. c5 {[%emt 0:00:41]} Rh3 {[%emt 0:00:57]} 83. c6 {[%emt 0:00:14]} Nf1 {[%emt 0:00:43]} 84. Rxg2+ {[%emt 0:00:29]} Kh4 {[%emt 0:00:02]} 85. c7 {[%emt 0:00:43]} Re3+ {[%emt 0:00:17]} 86. Kf4 {[%emt 0:00:27]} Re8 {[%emt 0:00:13]} 87. Rg7 {[%emt 0:00:26]} Rf8+ {[%emt 0:00:17]} 88. Ke5 {[%emt 0:00:12]} Nd2 {[%emt 0:00:23]} 89. Rd7 {[%emt 0:00:17]} Nc4+ {[%emt 0:00:12]} 90. Kd4 {[%emt 0:00:31]} Nb6 {[%emt 0:00:34]} 91. Rd8 {[%emt 0:00:14]} Rf2 {[%emt 0:00:54]} 92. Ke3 {[%emt 0:00:48]} Rf6 {[%emt 0:01:02]} 93. c8=Q {[%emt 0:01:06]} Nxc8 {[%emt 0:00:06]} 94. Rxc8 {[%emt 0:00:05]} Rb6 {[%emt 0:00:07]} 95. Rc2 {[%emt 0:00:41]} Rb3+ {[%emt 0:00:22]} 96. Kd2 {[%emt 0:00:50]} Kg4 {[%emt 0:00:17]} 97. Rc4+ {[%emt 0:00:08]} Kh3 {[%emt 0:00:26]} 98. Rc3+ {[%emt 0:00:08]} 1-0